bitfinex/quotes_ETHUSD_20240722
["timestamp","ask_amount","ask_price","bid_price","bid_amount"]
[1721664330191,2.88981,3460.5,3459.8,2.89033]
[1721664330394,2.88988,3460.4,3459.9,2.89025]
[1721664330593,2.88981,3460.5,3459.8,2.89029]
[1721664331031,2.88981,3460.5,3460.0,2.89017]
[1721664331248,2.88984,3460.4,3459.9,2.89025]
[1721664331540,1.21029343,3460.6,3459.9,3.71661]
[1721664331725,2.88979,3460.5,3460.0,2.89017]
[1721664332029,0.12445547,3460.5,3460.1,2.89004]
[1721664332188,0.12445547,3460.5,3460.2,2.88999]
[1721664332396,0.12445547,3460.5,3460.1,2.89008]
[1721664333328,2.88985,3460.4,3459.9,0.82642]
[1721664333496,0.12445547,3460.5,3459.8,2.89028]
[1721664333497,2.88993,3460.3,3459.8,2.89028]
[1721664333839,2.88993,3460.3,3459.3,10.4]
[1721664333840,2.89015,3460.1,3459.3,10.4]
[1721664334046,2.89015,3460.1,3459.4,1.28562]
[1721664334199,2.89015,3460.1,3459.6,2.89049]
[1721664334396,0.12325783,3460.0,3459.8,2.89028]
[1721664334596,0.12325783,3460.0,3459.9,2.89025]
[1721664334807,2.88984,3460.4,3459.9,2.89025]
[1721664335102,0.1232484,3460.0,3459.9,2.89025]
[1721664335308,2.88984,3460.4,3459.9,2.89025]
[1721664335517,2.461,3460.5,3459.7,2.89042]
[1721664335518,0.1232484,3460.0,3459.8,2.89033]
[1721664335832,0.1232484,3459.9,3459.5,2.89051]
[1721664336196,2.88996,3460.3,3459.8,2.89029]
[1721664336644,2.88996,3460.3,3459.8,5.78057]
[1721664336841,5.35081,3460.5,3459.9,2.89025]
[1721664336993,2.88988,3460.4,3459.9,2.89025]
[1721664337397,5.35081,3460.5,3459.8,2.89033]
[1721664337398,2.88996,3460.3,3459.8,2.89033]
[1721664337629,5.35081,3460.5,3459.9,2.89023]
[1721664337630,2.88984,3460.4,3459.9,2.89023]
[1721664338250,2.88993,3460.3,3459.9,2.89023]
[1721664338447,2.88993,3460.3,3459.8,2.89033]
[1721664338648,3.67129343,3460.5,3459.9,2.89024]
[1721664338850,2.461,3460.5,3459.9,2.89024]
[1721664339056,5.77981,3460.4,3459.9,2.89024]
[1721664339218,2.88989,3460.4,3459.9,2.89024]
[1721664339418,2.89,3460.2,3459.7,2.89042]
[1721664339846,6.56106343,3460.5,3459.9,2.89017]
[1721664340742,2.88984,3460.4,3459.9,2.89017]
[1721664340948,2.88996,3460.3,3459.8,2.89033]
[1721664341253,4.10013343,3460.4,3459.7,0.417604]
[1721664341254,2.89007,3460.2,3459.7,0.417604]
[1721664341453,2.89001,3460.2,3459.7,0.417604]
[1721664341771,2.89001,3460.2,3459.7,3.307994]
[1721664342067,1.21029343,3460.3,3459.4,1.28562]
[1721664342068,2.461,3460.1,3459.5,2.89054]
[1721664342730,0.12321806,3460.0,3459.5,2.89054]
[1721664342936,3.01343806,3460.0,3459.5,2.89054]
[1721664343152,2.89029,3459.9,3459.4,1.28562]
[1721664343680,0.12319086,3459.8,3459.4,1.28562]
[1721664343873,0.12319086,3459.8,3459.5,1.403252]
[1721664344081,2.461,3460.1,3459.5,1.403252]
[1721664344244,0.12319086,3459.7,3459.3,10.29075]
[1721664344441,2.89026,3459.9,3459.3,7.4]
[1721664344645,0.12319086,3459.6,3459.3,7.4]
[1721664344879,2.89043,3459.7,3459.0,2.89096]
[1721664345089,0.12319086,3459.5,3459.2,2.89078]
[1721664345382,0.12319086,3459.4,3459.3,2.89075]
[1721664345602,2.89034,3459.8,3459.3,2.89075]
[1721664345882,0.12319086,3459.4,3459.3,2.89075]
[1721664346044,2.89046,3459.7,3459.2,1.125484]
[1721664346245,0.12319086,3459.4,3459.0,2.891]
[1721664346444,5.78148,3459.4,3458.7,2.89122]
[1721664346770,0.12313643,3459.3,3458.8,5.89113]
[1721664346943,3.01392643,3459.3,3458.8,5.89113]
[1721664347148,2.89084,3459.2,3458.8,3.0]
[1721664347378,2.89113,3458.9,3458.4,2.89149]
[1721664347544,2.89113,3458.9,3458.4,3.75786952]
[1721664347750,0.12310503,3458.8,3458.5,2.8914]
[1721664347947,2.89122,3458.8,3458.4,0.86637952]
[1721664348172,0.12307157,3458.7,3458.2,2.2764]
[1721664348380,0.12307157,3458.7,3458.2,5.16806]
[1721664348551,2.89121,3458.8,3458.2,5.16806]
[1721664348751,2.89121,3458.8,3458.2,5.16801]
[1721664349097,2.89143,3458.5,3458.0,2.89178]
[1721664349318,3.01435912,3458.7,3458.1,0.826453]
[1721664349454,5.25242,3458.8,3457.9,2.89186]
[1721664349455,0.12300248,3458.4,3457.9,2.89186]
[1721664349648,2.89152,3458.4,3457.8,2.89195]
[1721664349844,2.89152,3458.4,3457.3,5.3732]
[1721664349845,0.12296374,3458.3,3457.3,5.3732]
[1721664350058,0.12296374,3458.3,3457.8,2.89195]
[1721664350269,0.12296374,3458.3,3458.0,2.89177]
[1721664350471,0.12296374,3458.3,3458.1,2.89175]
[1721664350670,2.461,3458.5,3458.1,2.89175]
[1721664350987,10.405,3459.6,3458.3,2.89157]
[1721664350988,5.35211,3458.9,3458.3,2.89157]
[1721664351281,3.01408427,3458.8,3458.3,2.89157]
[1721664353683,0.12286427,3458.8,3458.3,2.89157]
[1721664353886,0.12286427,3458.8,3458.7,5.7825]
[1721664354058,0.12286427,3458.8,3458.7,2.89125]
[1721664354249,0.12286427,3458.8,3458.7,5.7825]
[1721664354687,2.89034,3459.8,3459.0,2.89093]
[1721664354889,2.89047,3459.7,3459.2,2.89084]
[1721664355053,0.1206794,3459.7,3459.2,2.89079]
[1721664355450,0.1206794,3459.7,3459.2,2.89078]
[1721664355648,2.89034,3459.8,3459.2,2.89078]
[1721664355880,0.12073907,3459.6,3459.2,3.179858]
[1721664356086,2.89048,3459.7,3459.2,3.179878]
[1721664356255,0.12073907,3459.5,3459.2,3.179878]
[1721664356461,2.89048,3459.7,3459.2,3.179878]
[1721664356677,0.12073907,3459.4,3459.2,6.070648]
[1721664356883,2.89033,3459.9,3459.3,0.6070648]
[1721664357090,0.11671444,3459.3,3459.2,3.179848]
[1721664357283,2.89034,3459.8,3459.2,3.179848]
[1721664357478,2.89034,3459.8,3459.2,2.89077]
[1721664357479,0.11671444,3459.3,3459.2,2.89077]
[1721664357690,2.89023,3460.0,3459.5,2.89057]
[1721664358211,5.15375,3460.2,3458.5,2.89142]
[1721664358212,5.15375,3460.2,3459.6,2.89046]
[1721664358364,2.8901,3460.1,3459.6,2.89046]
[1721664358564,2.89017,3460.0,3459.4,2.89062]
[1721664358800,2.89017,3460.0,3459.5,2.89058]
[1721664358975,2.2637,3460.2,3459.6,2.89049]
[1721664359177,2.8901,3460.1,3459.6,2.89049]
[1721664359774,2.2637,3460.2,3459.6,2.89049]
[1721664359775,2.89003,3460.2,3459.6,2.89044]
[1721664359989,2.89003,3460.2,3459.0,2.89096]
[1721664359990,5.78026,3460.1,3459.4,5.78121]
[1721664360194,2.89017,3460.0,3459.5,2.89058]
[1721664360403,3.40317237,3460.4,3459.5,2.89057]
[1721664360404,2.89016,3460.1,3459.5,2.89057]
[1721664360711,2.89016,3460.1,3459.4,2.89066]
[1721664360712,2.89016,3460.1,3459.6,2.89049]
[1721664361013,2.89015,3460.1,3459.6,2.89049]
[1721664361208,2.89015,3460.1,3459.2,2.3572]
[1721664361209,2.89017,3460.0,3459.2,5.248]
[1721664361362,2.89017,3460.0,3459.5,2.89058]
[1721664361563,2.89025,3459.9,3459.3,2.89067]
[1721664361803,2.89025,3459.9,3459.2,6.061898]
[1721664362012,2.89025,3459.9,3459.0,2.891]
[1721664362013,2.4998,3459.8,3459.0,2.891]
[1721664362181,2.89047,3459.7,3459.1,5.89087]
[1721664362378,2.89047,3459.7,3459.2,2.89083]
[1721664363105,2.8905,3459.7,3458.9,2.89105]
[1721664363305,2.8905,3459.7,3458.9,2.89104]
[1721664363306,2.89061,3459.5,3458.9,2.89104]
[1721664363506,2.461,3460.0,3459.4,2.89066]
[1721664363836,2.4231,3460.2,3459.5,2.89057]
[1721664363837,2.89001,3460.2,3459.5,2.89057]
[1721664363969,0.11294065,3459.9,3459.6,2.8905]
[1721664364167,3.83205237,3460.4,3459.6,2.89045]
[1721664364401,2.89006,3460.2,3459.3,5.33714]
[1721664364603,2.89022,3460.0,3459.5,2.89055]
[1721664364773,0.11294065,3459.9,3459.5,2.89055]
[1721664365213,0.11294065,3459.9,3459.4,2.89067]
[1721664365419,3.00327065,3459.9,3459.4,2.89067]
[1721664366141,0.11294065,3459.9,3459.5,2.89053]
[1721664366341,0.11294065,3459.9,3459.6,2.8905]
[1721664366508,2.89018,3460.0,3459.4,2.89059]
[1721664366703,0.11299194,3459.8,3459.4,2.89059]
[1721664366914,2.89018,3460.0,3459.4,3.179649]
[1721664367202,2.89018,3460.0,3459.3,2.89073]
[1721664367401,2.89064,3459.5,3459.0,2.89099]
[1721664367630,2.89046,3459.7,3458.8,7.4]
[1721664367836,2.89015,3460.1,3459.5,2.89052]
[1721664367992,2.3397,3460.3,3459.5,2.89052]
[1721664368191,2.89017,3460.0,3459.5,2.89058]
[1721664368720,2.89001,3460.2,3459.6,2.8905]
[1721664368902,2.89001,3460.2,3459.6,2.89045]
[1721664369533,2.8901,3460.1,3459.6,2.89045]
[1721664369701,2.89001,3460.2,3459.7,2.8904]
[1721664369908,2.89009,3460.1,3459.6,2.89045]
[1721664370104,5.78042,3460.0,3459.5,2.89057]
[1721664370295,2.89019,3460.0,3459.5,2.89057]
[1721664370492,2.89019,3460.0,3459.5,2.89052]
[1721664370728,2.89019,3460.0,3459.5,5.78105]
[1721664370893,2.89006,3460.2,3459.7,2.89042]
[1721664371093,2.3397,3460.3,3459.7,2.89042]
[1721664371339,5.22963,3460.3,3459.8,2.89029]
[1721664371802,2.89001,3460.2,3459.7,2.89042]
[1721664372035,5.22963,3460.3,3459.5,2.89052]
[1721664372036,2.3397,3460.3,3459.5,2.89052]
[1721664372238,2.89017,3460.0,3459.5,2.89052]
[1721664372734,0.11300345,3459.9,3459.5,2.89052]
[1721664373668,2.89009,3460.1,3459.6,2.89043]
[1721664373834,0.11301285,3459.8,3459.6,2.89043]
[1721664374046,2.89009,3460.1,3459.6,2.89043]
[1721664374360,0.11300134,3459.7,3459.6,2.89043]
[1721664374571,2.89009,3460.1,3459.6,2.89043]
[1721664375024,5.22967,3460.3,3459.8,2.89034]
[1721664375025,0.11298671,3460.0,3459.8,2.89034]
[1721664375366,5.22966,3460.3,3459.8,2.89034]
[1721664375367,8.11966,3460.3,3459.8,2.89034]
[1721664375571,0.11299298,3459.9,3459.6,2.89044]
[1721664375729,5.22966,3460.3,3459.6,2.89044]
[1721664375925,0.11299298,3459.8,3459.7,2.89041]
[1721664376133,2.461,3460.4,3459.9,2.89024]
[1721664376477,5.35085,3460.4,3459.9,2.89024]
[1721664376777,5.35085,3460.4,3459.8,2.89033]
[1721664376940,2.88992,3460.3,3459.8,2.89033]
[1721664377568,2.88992,3460.3,3459.8,2.89028]
[1721664377881,2.89005,3460.2,3459.6,2.89045]
[1721664378059,2.89005,3460.2,3459.5,2.89059]
[1721664378233,2.89002,3460.2,3459.7,2.89041]
[1721664378665,2.88992,3460.3,3459.7,2.89037]
[1721664379372,2.461,3460.4,3459.9,2.89025]
[1721664379559,2.88979,3460.5,3460.0,2.89016]
[1721664380151,2.88988,3460.4,3459.8,2.89029]
[1721664380476,2.88976,3460.5,3460.0,2.89013]
[1721664380950,0.79054586,3460.6,3460.0,2.89012]
[1721664381339,2.88976,3460.5,3460.0,2.89012]
[1721664381547,0.79054586,3460.6,3460.0,2.89012]
[1721664381785,2.88952,3460.8,3460.2,2.88999]
[1721664381962,4.88338073,3461.1,3460.3,2.88991]
[1721664381963,4.09968343,3461.0,3460.3,2.88991]
[1721664382136,2.88935,3461.0,3459.7,2.3883]
[1721664382339,3.53569343,3461.3,3460.3,2.3883]
[1721664382547,2.88922,3461.2,3460.6,2.88961]
[1721664382773,2.88927,3461.1,3460.6,2.88961]
[1721664382975,2.88925,3461.1,3460.5,2.88971]
[1721664383635,2.88934,3461.0,3460.5,2.88971]
[1721664384089,2.88925,3461.1,3460.6,2.88967]
[1721664384240,2.88925,3461.1,3460.4,2.88978]
[1721664384439,2.88975,3460.5,3459.8,2.89028]
[1721664384678,2.88975,3460.5,3459.9,5.8902]
[1721664384679,2.88977,3460.5,3459.9,5.8902]
[1721664385171,2.88984,3460.4,3459.9,5.8902]
[1721664385371,2.461,3460.8,3459.9,5.8902]
[1721664385372,2.461,3460.8,3460.1,2.89003]
[1721664385578,2.88959,3460.7,3460.1,2.89003]
[1721664385774,2.461,3460.8,3459.9,3.0]
[1721664385775,5.35051,3460.8,3459.9,3.0]
[1721664385948,5.32646,3460.9,3460.3,2.88989]
[1721664386153,5.32646,3460.9,3460.4,2.88983]
[1721664386154,2.88946,3460.9,3460.4,2.88983]
[1721664387077,2.88939,3461.0,3460.1,5.23794]
[1721664387078,2.8895,3460.8,3460.3,2.88991]
[1721664387439,0.10928175,3460.7,3460.3,2.88991]
[1721664388085,0.10928175,3460.7,3460.1,5.23793]
[1721664388288,2.99887175,3460.7,3460.1,2.89008]
[1721664388582,0.10928175,3460.7,3460.2,2.88994]
[1721664388980,2.88974,3460.6,3460.1,2.89003]
[1721664389283,2.88959,3460.7,3460.2,2.89]
[1721664389495,0.10928175,3460.5,3460.2,2.89]
[1721664389637,2.88959,3460.7,3460.2,2.89]
[1721664389835,0.10928175,3460.4,3460.2,2.89]
[1721664390042,2.88959,3460.7,3460.2,2.89]
[1721664390266,0.10928175,3460.3,3460.2,2.89]
[1721664390571,2.88959,3460.7,3460.2,2.89]
[1721664390779,0.10928175,3460.3,3460.2,5.78]
[1721664390990,2.88942,3460.9,3460.3,2.88988]
[1721664391342,2.99879175,3460.8,3460.3,2.88988]
[1721664391542,2.99879175,3460.8,3460.4,2.88983]
[1721664391843,2.99879175,3460.8,3460.0,2.89011]
[1721664392165,2.88964,3460.7,3460.1,2.89005]
[1721664392365,2.88964,3460.7,3460.2,2.88998]
[1721664392981,0.10928175,3460.6,3460.2,2.88999]
[1721664393544,0.10928175,3460.6,3460.3,2.88986]
[1721664393953,2.88951,3460.8,3460.4,2.88983]
[1721664394154,2.88942,3460.9,3460.4,2.88983]
[1721664394385,0.10933198,3460.7,3460.4,2.88983]
[1721664394547,2.88942,3460.9,3460.4,2.88983]
[1721664394747,0.10933198,3460.6,3460.4,2.88983]
[1721664395068,0.10933198,3460.5,3460.4,2.88983]
[1721664395275,2.8895,3460.8,3460.3,2.88991]
[1721664395795,0.10933198,3460.7,3460.3,2.88986]
[1721664395951,2.99892198,3460.7,3460.3,3.467849]
[1721664396150,2.88959,3460.7,3460.3,2.88986]
[1721664396349,0.10933198,3460.6,3460.3,2.88986]
[1721664396542,0.10933198,3460.6,3460.1,2.89003]
[1721664396543,2.99903198,3460.6,3460.1,2.89003]
[1721664396886,2.88959,3460.7,3460.2,2.88999]
[1721664397087,0.10933198,3460.5,3460.2,2.88999]
[1721664397248,2.88959,3460.7,3460.2,2.88994]
[1721664397453,2.88942,3460.9,3460.4,2.88981]
[1721664397653,2.88938,3461.0,3460.4,2.88981]
[1721664398053,2.88951,3460.8,3460.3,2.88991]
[1721664398450,5.77909,3460.8,3460.3,2.88991]
[1721664398663,2.88959,3460.7,3460.2,2.88999]
[1721664398991,2.88951,3460.8,3460.2,2.88999]
[1721664399190,1.21029343,3461.0,3460.2,0.578011]
[1721664399401,6.41437343,3461.3,3460.3,2.4426]
[1721664399689,2.88923,3461.2,3460.6,5.77927]
[1721664399893,2.88923,3461.2,3460.7,2.88958]
[1721664400363,2.88926,3461.1,3460.6,2.88966]
[1721664400565,2.88933,3461.0,3460.5,2.88975]
[1721664400750,2.88925,3461.1,3460.6,2.88966]
[1721664402056,2.88925,3461.1,3460.6,5.77928]
[1721664402256,2.88925,3461.1,3460.6,2.88962]
[1721664402452,3.67129343,3461.4,3460.5,0.822213]
[1721664402453,0.1093613,3461.0,3460.5,0.822213]
[1721664402654,3.60399343,3461.6,3460.9,2.88942]
[1721664402893,2.3937,3461.6,3461.2,2.88915]
[1721664403109,5.34973,3461.8,3461.0,2.88932]
[1721664403264,5.34973,3461.8,3461.2,5.7783]
[1721664403462,5.34973,3461.8,3461.2,2.88915]
[1721664403689,5.33323,3461.9,3461.3,0.05777983]
[1721664403906,1.21029343,3462.2,3461.6,2.88878]
[1721664404071,2.88838,3462.2,3461.5,2.8889]
[1721664404258,2.88842,3462.1,3461.6,2.88881]
[1721664406773,5.7766,3462.3,3461.6,5.77756]
[1721664407107,2.88835,3462.2,3461.6,2.88875]
[1721664407404,2.4446,3462.5,3461.4,2.88895]
[1721664407405,5.77691,3462.1,3461.4,2.88895]
[1721664407563,2.88823,3462.4,3461.6,2.88882]
[1721664407764,2.88842,3462.1,3461.6,2.88882]
[1721664407963,2.88842,3462.1,3461.3,0.29468898]
[1721664408199,0.779383,3462.4,3461.3,0.29468898]
[1721664408200,2.88863,3461.9,3461.3,2.88902]
[1721664408394,2.88863,3461.9,3460.9,2.2587]
[1721664408602,2.88863,3461.9,3461.4,2.88899]
[1721664409822,2.88846,3462.1,3461.6,2.88882]
[1721664410030,2.88846,3462.1,3461.5,2.88891]
[1721664410210,2.88846,3462.1,3460.9,9.6587]
[1721664410211,2.88863,3461.9,3461.3,2.88903]
[1721664410526,2.88846,3462.1,3461.6,2.88879]
[1721664410930,2.88846,3462.1,3461.4,2.889]
[1721664411224,2.8886,3461.9,3461.5,2.4113]
[1721664411445,1.51029714,3463.0,3461.6,2.4113]
[1721664411618,2.2518,3463.5,3461.6,2.4113]
[1721664411619,2.88738,3463.4,3462.0,2.88846]
[1721664411922,2.2518,3463.5,3462.0,2.88846]
[1721664411923,2.88747,3463.3,3462.0,2.88846]
[1721664412079,2.88747,3463.3,3462.6,2.88795]
[1721664412282,5.13905,3463.5,3462.6,2.88795]
[1721664412477,2.8875,3463.2,3462.5,2.88807]
[1721664412679,2.8875,3463.2,3462.4,2.88816]
[1721664412880,2.461,3462.9,3462.1,3.0]
[1721664413108,2.461,3462.9,3462.2,2.88831]
[1721664413319,2.461,3462.9,3462.0,2.88847]
[1721664413320,2.461,3462.5,3462.0,2.88847]
[1721664413485,2.2518,3462.8,3462.3,2.88818]
[1721664413688,2.2518,3462.8,3462.3,5.77635]
[1721664413994,2.88734,3463.4,3461.7,3.0]
[1721664414182,2.88742,3463.3,3462.7,2.88787]
[1721664414386,2.88742,3463.3,3462.7,2.88784]
[1721664414991,2.88763,3463.1,3462.5,2.88801]
[1721664415539,2.88753,3463.2,3462.4,2.88814]
[1721664415821,2.88773,3463.0,3462.4,2.88814]
[1721664416031,2.88751,3463.2,3462.5,2.88805]
[1721664416180,2.88759,3463.1,3462.5,2.88805]
[1721664416684,3.93623,3463.3,3462.6,2.888]
[1721664416887,3.93623,3463.3,3462.0,2.88846]
[1721664416888,2.8875,3463.2,3462.5,5.77609]
[1721664417100,2.8875,3463.2,3462.6,2.88798]
[1721664417327,2.88758,3463.1,3462.6,2.88798]
[1721664417528,0.1021237,3463.1,3462.6,2.88793]
[1721664417841,5.77477,3463.4,3462.8,2.88782]
[1721664418044,0.1021237,3463.0,3462.8,2.88782]
[1721664418303,2.88739,3463.4,3462.8,2.88782]
[1721664418459,0.1021237,3462.9,3462.8,2.88782]
[1721664418749,0.1021237,3463.3,3462.8,2.88777]
[1721664418907,2.88743,3463.3,3462.8,2.88777]
[1721664419107,0.1021237,3463.2,3462.8,2.88777]
[1721664419322,2.88743,3463.3,3462.8,2.88777]
[1721664419523,0.1021237,3463.1,3462.6,2.88794]
[1721664419749,2.8875,3463.2,3462.6,2.88794]
[1721664419963,2.888,3462.6,3462.0,7.4]
[1721664420142,2.88813,3462.5,3462.0,2.88848]
[1721664420454,0.1021237,3462.5,3462.0,2.88844]
[1721664420611,0.1021237,3462.5,3462.1,2.88839]
[1721664420810,0.1021237,3462.5,3462.3,2.88817]
[1721664421015,2.4119,3462.8,3462.4,2.88815]
[1721664421257,0.10213213,3462.4,3462.3,5.7765]
[1721664421470,5.17152,3463.3,3462.7,2.88787]
[1721664421819,5.17152,3463.3,3462.8,2.88783]
[1721664422083,5.17152,3463.3,3462.3,0.866488]
[1721664422084,2.98971213,3463.2,3462.6,2.88793]
[1721664422540,2.98971213,3463.2,3462.4,2.88812]
[1721664422541,0.10213213,3463.2,3462.4,2.88812]
[1721664422728,2.88774,3463.0,3462.3,0.866488]
[1721664422930,2.88785,3462.8,3462.0,2.88845]
[1721664423126,2.88785,3462.8,3462.1,2.88837]
[1721664423127,2.88792,3462.7,3462.1,2.88837]
[1721664423363,2.99005213,3462.7,3462.1,2.88837]
[1721664423666,2.88809,3462.5,3462.0,2.8885]
[1721664424067,5.34861,3463.1,3462.2,2.88826]
[1721664424068,0.10212263,3462.4,3462.2,2.88826]
[1721664424375,2.461,3463.1,3461.4,5.30028]
[1721664424674,2.88797,3462.7,3462.0,2.88843]
[1721664424827,2.88779,3462.9,3462.1,2.88835]
[1721664425028,2.88792,3462.7,3462.1,2.88835]
[1721664425525,0.10210787,3462.6,3462.1,2.88835]
[1721664425729,2.2841,3463.3,3462.1,2.88835]
[1721664425730,2.88773,3463.0,3462.3,2.88824]
[1721664425956,2.88779,3462.9,3462.1,3.177215]
[1721664426233,0.10210787,3462.9,3462.4,2.88812]
[1721664426549,2.98985787,3462.9,3462.4,2.88812]
[1721664427346,2.88796,3462.7,3462.2,2.88827]
[1721664427579,5.77557,3462.9,3462.2,2.88827]
[1721664427732,0.10210787,3462.6,3462.4,2.88815]
[1721664427934,2.88775,3462.9,3462.4,2.88815]
[1721664428134,0.10210787,3462.5,3462.3,2.88821]
[1721664428370,2.88783,3462.8,3462.0,2.8885]
[1721664428573,2.88854,3462.0,3461.1,2.8892]
[1721664428776,2.88891,3461.6,3460.9,2.88937]
[1721664429087,2.88905,3461.4,3460.8,2.88945]
[1721664429236,2.88905,3461.4,3460.7,2.88955]
[1721664429237,2.99107787,3461.5,3460.9,2.88937]
[1721664429554,2.88897,3461.5,3460.9,2.88937]
[1721664429762,0.1020878,3461.4,3460.9,2.88937]
[1721664429980,0.1020878,3461.4,3460.9,3.46726]
[1721664430160,0.1020878,3461.4,3460.9,0.57789]
[1721664430470,0.1020878,3461.4,3460.6,2.88961]
[1721664430471,2.88918,3461.2,3460.6,2.88961]
[1721664430634,2.88918,3461.2,3460.5,2.8897]
[1721664430635,0.1020878,3461.3,3460.7,2.88957]
[1721664430970,2.88909,3461.3,3460.7,2.88952]
[1721664431368,0.1020287,3461.2,3460.7,2.88952]
[1721664431940,0.1020287,3461.2,3460.7,5.77902]
[1721664432146,2.88893,3461.5,3460.9,2.88936]
[1721664432342,0.10200969,3461.1,3460.9,2.88936]
[1721664432541,2.88877,3461.7,3461.0,2.88933]
[1721664432542,2.88888,3461.6,3461.0,2.88933]
[1721664432771,2.88873,3461.8,3460.8,2.3071]
[1721664433047,2.88867,3461.8,3461.2,2.88909]
[1721664433477,2.88877,3461.7,3461.2,2.88909]
[1721664433691,2.88842,3462.1,3461.0,2.88933]
[1721664433901,2.88896,3461.5,3460.8,2.88942]
[1721664434079,2.88902,3461.4,3460.9,2.88937]
[1721664435295,2.88871,3461.8,3460.6,2.88965]
[1721664435446,2.88888,3461.6,3460.8,2.88945]
[1721664435798,2.88893,3461.5,3461.0,2.88933]
[1721664436285,2.88921,3461.2,3460.5,3.0]
[1721664436488,5.25684,3461.4,3460.6,3.43207]
[1721664436707,5.25684,3461.4,3460.6,0.54242]
[1721664436891,5.25684,3461.4,3460.7,2.88956]
[1721664436892,2.88917,3461.2,3460.7,2.88956]
[1721664437091,8.14591,3461.4,3460.7,5.77908]
[1721664437290,8.14591,3461.4,3460.7,2.88952]
[1721664437291,2.88913,3461.3,3460.7,2.88952]
[1721664437457,2.88922,3461.2,3460.6,2.8896]
[1721664437970,2.88908,3461.3,3460.7,2.88953]
[1721664438152,2.88908,3461.3,3460.8,3.478443]
[1721664438354,5.34969,3461.8,3460.8,3.478453]
[1721664438355,2.461,3461.8,3460.8,3.478453]
[1721664438667,2.88898,3461.5,3461.0,2.8893]
[1721664439196,2.88898,3461.5,3460.8,3.478373]
[1721664439571,2.8891,3461.3,3460.8,0.588953]
[1721664439785,2.8891,3461.3,3460.9,0.6368093]
[1721664439993,2.88898,3461.5,3460.9,0.6368093]
[1721664440172,2.88884,3461.6,3461.0,2.88929]
[1721664440360,5.77708,3462.0,3461.2,2.88912]
[1721664440688,3.0,3462.4,3461.7,2.88868]
[1721664440689,2.88822,3462.4,3461.7,2.88868]
[1721664440988,2.88847,3462.1,3461.5,2.88887]
[1721664441158,2.88847,3462.1,3461.5,5.77773]
[1721664441361,2.88847,3462.1,3461.2,0.35259293]
[1721664441362,2.88847,3462.1,3461.6,2.88882]
[1721664441561,5.77696,3462.1,3461.7,0.577781]
[1721664441761,2.88837,3462.2,3461.7,3.466531]
[1721664442156,2.88837,3462.2,3461.7,0.577781]
[1721664442371,2.88858,3462.0,3461.3,2.88907]
[1721664442572,2.88863,3461.9,3461.3,2.88907]
[1721664443193,2.88863,3461.9,3461.3,2.88903]
[1721664443448,2.88863,3461.9,3461.3,5.77805]
[1721664443582,2.88863,3461.9,3461.2,0.35259293]
[1721664443583,2.88863,3461.9,3461.2,3.24175293]
[1721664444122,2.8888,3461.7,3461.2,0.35259293]
[1721664444333,2.88892,3461.5,3461.3,0.56615629]
[1721664444484,2.88892,3461.5,3461.0,3.0]
[1721664444988,2.88892,3461.5,3461.0,5.88933]
[1721664445224,2.4595,3461.9,3461.0,5.88929]
[1721664445225,5.34813,3461.9,3461.0,5.88929]
[1721664445414,2.88868,3461.8,3461.3,2.88908]
[1721664445608,2.88868,3461.8,3461.1,0.05777895]
[1721664445808,2.461,3462.2,3461.3,2.88904]
[1721664446196,2.8886,3461.9,3461.3,2.88904]
[1721664446402,2.8886,3461.9,3461.2,3.4838659]
[1721664446629,2.88846,3462.1,3461.2,3.4838659]
[1721664447013,2.88862,3461.9,3461.3,2.88908]
[1721664447333,2.88862,3461.9,3461.4,0.63729459]
[1721664447630,0.10202657,3461.8,3461.4,0.63729459]
[1721664447800,0.10202657,3461.8,3461.4,3.52627459]
[1721664448517,0.10202657,3461.8,3461.4,3.52625459]
[1721664448709,2.88843,3462.1,3461.6,2.88879]
[1721664448889,0.10202551,3462.0,3461.6,2.88879]
[1721664449097,0.10202551,3462.0,3461.6,3.76059646]
[1721664449427,2.99053551,3462.0,3461.6,0.87180646]
[1721664449932,2.99053551,3462.0,3461.5,2.88891]
[1721664450128,2.88862,3461.9,3461.4,0.63729459]
[1721664450444,2.88877,3461.7,3461.1,2.8892]
[1721664450593,2.88884,3461.6,3461.1,2.8892]
[1721664450793,5.18943,3461.9,3461.2,2.88916]
[1721664450989,0.10202551,3461.5,3461.0,3.0]
[1721664451225,2.88897,3461.5,3461.1,1.04]
[1721664451399,0.10202551,3461.4,3461.1,1.04]
[1721664451804,0.10202551,3461.4,3461.1,3.92925]
[1721664452191,2.88887,3461.6,3461.1,3.92925]
[1721664452398,0.10203184,3461.3,3461.1,6.81844]
[1721664452595,2.88883,3461.6,3461.1,6.81844]
[1721664452596,2.88883,3461.6,3461.2,0.981844]
[1721664453840,2.88875,3461.7,3461.2,0.981844]
[1721664454021,2.88875,3461.7,3461.2,3.871004]
[1721664454239,2.88875,3461.7,3461.3,2.88907]
[1721664454399,2.88888,3461.6,3461.2,0.981844]
[1721664454810,2.88896,3461.5,3461.2,0.981844]
[1721664455349,2.88896,3461.5,3461.1,1.04]
[1721664455840,2.88896,3461.5,3461.0,2.88933]
[1721664456250,2.88896,3461.5,3461.0,5.77861]
[1721664456411,2.88896,3461.5,3461.0,2.88928]
[1721664457304,2.88896,3461.5,3460.8,2.88943]
[1721664457832,2.88901,3461.4,3460.9,2.88938]
[1721664458141,2.88892,3461.5,3461.0,0.522658]
[1721664458344,2.88892,3461.5,3461.0,3.411928]
[1721664458844,2.88892,3461.5,3461.0,0.522658]